Cogmind - Beta 13 @@@ ROGUE MODE // 2024.04.07 @ 15:37:58 Player: DURANDAL Result: Destroyed by X-57 Shotgunner with Shotgun Performance ------------- Evolutions (3) 1500 Regions Visited (6) 1200 Robots Destroyed (111) 555 Value Destroyed (3843) 3843 Prototype IDs (5) 100 Alien Tech Used (0) 0 Bonus (390) 390 TOTAL SCORE: 7588 Bonus ------- High Alert Combat Kills 15 Follower Combat Kills 75 Aligned with FarCom 300 Cogmind --------- Core Integrity 0/700 Matter 206/450 Energy 140/140 System Corruption 15% Temperature Cool (0) Movement Walking (470) Ox5 Location -7/Factory Parts ------- > --- POWER (1) -------- Light Deuterium Engine > --- PROPULSION (4) --- Flexi-carbon Leg > --- UTILITY (5) ------ Large Storage Unit Huge Storage Unit Large Matter Pod Core Analyzer > --- WEAPON (3) ------- Gauss Cannon > --- INVENTORY (25) --- Micro Nuclear Core High-capacity Storage Unit Improved Terrain Scanner Target Analyzer Target Analyzer Target Analyzer Transmission Jammer Advanced Shield Generator Shock Rifle Shock Rifle Autogun Barrage Gun Flak Cannon Flak Cannon EMP Blaster EMP Blaster Tesla Bomb Launcher Peak State ------------ > --- POWER ------------ Light Deuterium Engine > --- PROPULSION ------- VSS Leg VSS Leg Flexi-carbon Leg Flexi-carbon Leg > --- UTILITY ---------- Large Storage Unit Huge Storage Unit Large Matter Pod Core Analyzer Hardened Medium Armor Plating > --- WEAPON ----------- High-powered Shotgun Flak Gun Gauss Cannon > --- INVENTORY -------- Micro Nuclear Core High-capacity Storage Unit Improved Terrain Scanner Target Analyzer Target Analyzer Target Analyzer Transmission Jammer Advanced Shield Generator Shock Rifle Shock Rifle Autogun Autogun Barrage Gun Flak Cannon Flak Cannon EMP Blaster EMP Blaster Tesla Bomb Launcher [Rating: 45] Favorites ----------- Power Ion Engine Engine Ion Engine Power Core Nuclear Core Propulsion Light Treads Treads Light Treads Leg VSS Leg Flight Unit Improved VTOL Module Utility Improved Utility Shielding Device Terrain Scanner Storage Huge Storage Unit Processor Core Analyzer Protection Improved Utility Shielding Weapon Light Assault Rifle Energy Gun Shock Rifle Energy Cannon Latent Energy Streamer Ballistic Gun Light Assault Rifle Ballistic Cannon Flak Cannon Launcher Proton Missile Launcher Build | -11 -10 -10 -10 -9 -8 -7 ------- Run | Yrd Mat Min Exi Min Mat Fac Slots Evolved 6 | . . . . . 4 2 Power . | . . . . . . . Propulsion 2 | . . . . . 2 . Utility 3 | . . . . . 2 1 Weapon 1 | . . . . . . 1 Parts Attached 135 | 7 6 2 2 . 60 58 Power 14 | 1 1 . . . 6 6 Engine 8 | 1 1 . . . 4 2 Core 6 | . . . . . 2 4 Reactor . | . . . . . . . Propulsion 45 | 2 2 . 1 . 22 18 Treads 40 | 2 2 . 1 . 21 14 Leg 4 | . . . . . . 4 Wheel . | . . . . . . . Hover . | . . . . . . . Flight 1 | . . . . . 1 . Utility 29 | 1 2 . 1 . 13 12 Device 5 | . 1 . . . 2 2 Storage 9 | 1 1 . . . 4 3 Processor 2 | . . . . . 1 1 Hackware . | . . . . . . . Protection 13 | . . . 1 . 6 6 Artifact . | . . . . . . . Weapon 47 | 3 1 2 . . 19 22 Energy Gun 4 | 1 . . . . 1 2 Energy Cannon 1 | . . . . . 1 . Ballistic Gun 28 | 2 1 2 . . 9 14 Ballistic Cannon 8 | . . . . . 5 3 Launcher 6 | . . . . . 3 3 Special Weapon . | . . . . . . . Impact Weapon . | . . . . . . . Slashing Weapon . | . . . . . . . Piercing Weapon . | . . . . . . . Special Melee Weapon . | . . . . . . . Unidentified Prototypes 5 | . . . . . 4 1 Corrupted Parts 1 | . . . . . . 1 System Corruption 4 | . . . . . . 4 Parts Lost 87 | . 1 3 . . 38 45 Power 12 | . 1 . . . 7 4 Propulsion 30 | . . 1 . . 11 18 Utility 19 | . . . . . 10 9 Weapon 26 | . . 2 . . 10 14 Highest Loss Streak 17 | . 1 2 . . 14 17 To Critical Strikes . | . . . . . . . Average Slot Usage (%) 90 | . 92 93 93 100 87 91 Engine 7 | . 13 14 14 14 6 2 Core 2 | . . . . . 2 4 Treads 27 | . 28 22 21 28 34 22 Device 5 | . 7 14 11 . 6 2 Storage 13 | . 14 14 14 14 10 15 Processor 1 | . . . . . . 3 Protection 8 | . . . 2 14 9 13 Energy Gun 1 | . . . . . 1 3 Ballistic Gun 16 | . 28 27 28 28 11 14 Ballistic Cannon 2 | . . . . . 4 2 Naked Turns . | . . . . . . . Heaviest Build 216 | 11 20 20 18 18 216 132 Greatest Support 98 | 40 40 40 40 40 82 98 Greatest Overweight (x) 39 | . . . . . 10 39 Average Overweight (x) . | . . . . . . 1 Largest Inventory Capacity 35 | 8 10 10 10 10 35 25 Average Capacity 21 | 6 9 10 10 10 26 24 Most Carried 35 | 4 10 10 10 10 35 25 Average Carried 16 | 1 8 9 9 10 18 20 Final Capacity 25 | 8 10 10 10 10 20 25 Final Carried 20 | 2 10 10 10 10 20 17 Class Distribution -------------------- 31% | Mutant 22% | Scavenger-Mutant 15% | Hauler-Mutant 13% | Scavenger-Tank 8% | Scavenger-Skirmisher 4% | Tank 3% | Hauler-Skirmisher Dominant Class ---------------- Mutant | -10/Materials Mutant | -10/Mines Scavenger-Mutant | -10/Exiles Scavenger-Mutant | -9/Mines Hauler-Mutant | -8/Materials Scavenger-Tank | -7/Factory Resources | -11 -10 -10 -10 -9 -8 -7 ----------- Run | Yrd Mat Min Exi Min Mat Fac Matter Collected 3887 | 189 400 91 . 20 1620 1567 Remotely . | . . . . . . . Salvage Created 3901 | . 385 148 . . 1767 1601 Parts 229 | . 27 11 . . 99 92 Haulers Intercepted 9 | . 1 . . . 6 2 Recyclers Shooed 7 | . 2 . . . 2 3 Parts Field Recycled . | . . . . . . . Retrieved Matter . | . . . . . . . Parts Self-Destructed . | . . . . . . . Prevented . | . . . . . . . Kills | -11 -10 -10 -10 -9 -8 -7 ------- Run | Yrd Mat Min Exi Min Mat Fac Combat Hostiles Destroyed 80 | . 7 7 . . 33 33 Guns 57 | . 7 7 . . 17 26 Cannons 12 | . . . . . 10 2 AOE 11 | . . . . . 6 5 Classes Destroyed 16 | . 4 1 . . 8 3 Worker 3 | . . . . . 2 1 Builder 4 | . 1 . . . 1 2 Tunneler 1 | . . . . . 1 . Hauler 9 | . 1 . . . 6 2 Recycler 8 | . . . . . 6 2 Operator 4 | . 1 . . . 2 1 Watcher 2 | . . . . . 1 1 Swarmer 16 | . . 6 . . 4 6 Cutter 2 | . . . . . 2 . Grunt 30 | . 7 1 . . 15 7 Protector 1 | . . . . . . 1 Sentry 9 | . . . . . 7 2 Specialist 13 | . . . . . 4 9 Hunter 1 | . . . . . . 1 Programmer 7 | . . . . . . 7 Heavy 1 | . . . . . 1 . Best Kill Streak 9 | . 3 3 . . 7 9 Combat Bots Only 8 | . 2 3 . . 7 8 Max Kills in Single Turn 3 | . 1 1 . . 3 3 Gunslinging 1 | . . . . . . 1 Exploded 2 | . . . . . 2 2 Melee . | . . . . . . . Uniques/NPCs Destroyed . | . . . . . . . Combat | -11 -10 -10 -10 -9 -8 -7 -------- Run | Yrd Mat Min Exi Min Mat Fac Hostile Shots Fired 1209 | . 50 64 . . 383 712 Missed 382 | . 14 15 . . 100 253 Damage Taken 12789 | . 467 464 . . 4942 6916 Core 1348 | . 50 100 . . 490 708 Absorbed by Shields 400 | . . . . . . 400 Redirected to Shielding 250 | . . . . . 50 200 Ignored by Resistances 177 | . . . . . . 177 Regen/Repaired (Parts) 301 | . . . . . . 301 Core Remaining (%) 50 | 100 . . . 40 10 . Volleys Fired 376 | . 61 35 . . 152 128 Largest 3 | . 2 2 . . 2 3 Hottest 123 | . 40 40 . . 75 123 Shots Fired 783 | . 122 45 . . 272 344 Gun 659 | . 122 45 . . 212 280 Cannon 109 | . . . . . 50 59 Launcher 15 | . . . . . 10 5 Special . | . . . . . . . Kinetic 728 | . 122 45 . . 259 302 Thermal . | . . . . . . . Explosive 10 | . . . . . 10 . Electromagnetic 45 | . . . . . 3 42 Robot Hit Streak 21 | . 11 11 . . 19 21 Robot Miss Streak 7 | . 3 3 . . 7 6 Penetration Max . | . . . . . . . Secondary Targets 6 | . . 1 . . 1 4 Max Gunslinging Chain 1 | . . 1 . . 1 1 Shots Hit Robots 519 | . 85 28 . . 194 212 Core Hits 286 | . 23 11 . . 129 123 Critical Kills . | . . . . . . . Critical Parts Destroyed 5 | . . . . . 2 3 Critical Strikes 7 | . . . . . 2 5 Destroy 5 | . . . . . 2 3 Blast 2 | . . . . . . 2 Melee Attacks . | . . . . . . . Impact . | . . . . . . . Slashing . | . . . . . . . Piercing . | . . . . . . . Sneak Attacks . | . . . . . . . Combat Hostiles . | . . . . . . . Follow-up Attacks . | . . . . . . . Damage Inflicted 8890 | . 729 274 . . 3679 4208 Guns 5766 | . 726 270 . . 1915 2855 Cannons 1692 | . . . . . 880 812 Explosions 1279 | . . . . . 785 494 Melee . | . . . . . . . Ramming 153 | . 3 4 . . 99 47 Kinetic 7190 | . 726 270 . . 2742 3452 Thermal 127 | . . . . . . 127 Explosive 785 | . . . . . 785 . Electromagnetic 635 | . . . . . 53 582 Impact . | . . . . . . . Slashing . | . . . . . . . Piercing . | . . . . . . . Highest Corruption 15 | . . . . . . 15 Average Corruption 6 | . . . . . . 6 Corruption Purged . | . . . . . . . Corruption Blocked . | . . . . . . . Effects 90 | . . . . . . 90 Message Errors 20 | . . . . . . 20 Matter Fused 27 | . . . . . . 27 Heat Flow Errors 5 | . . . . . . 5 Energy Discharges 9 | . . . . . . 9 Parts Rejected 1 | . . . . . . 1 Parts Fused 1 | . . . . . . 1 Data Loss (minor) 11 | . . . . . . 11 Data Loss (major) 4 | . . . . . . 4 Misfires 6 | . . . . . . 6 Alerts 3 | . . . . . . 3 Misdirections 2 | . . . . . . 2 Weapon Failures 1 | . . . . . . 1 Overload Shots . | . . . . . . . Overflow Damage 74 | . . . . . . 74 Projectiles 12 | . . . . . . 12 Explosions 62 | . . . . . . 62 Melee . | . . . . . . . Knockbacks 32 | . . . . . 17 15 Impact . | . . . . . . . Kinetic 27 | . . . . . 15 12 Secondary 5 | . . . . . 2 3 Self-Inflicted Damage 542 | . . . . . 87 455 Shots 10 | . . . . . 3 7 Rammed 15 | . 2 2 . . 7 4 Targets Rammed 20 | . 2 2 . . 12 4 Kicked . | . . . . . . . Crushed 5 | . . . . . 5 . Highest Temperature 456 | . 9 9 . . 432 456 Average Temperature 110 | . 4 9 . . 96 125 Received Heat Transfer 2500 | . 255 90 . . 1647 508 Effects 15 | . . . . . 9 6 Shutdowns 2 | . . . . . . 2 Energy Bleed 2 | . . . . . 1 1 Interference 2 | . . . . . 2 . Short Circuit 3 | . . . . . 2 1 Damage (major) 6 | . . . . . 4 2 Siege Activations . | . . . . . . . Robots Corrupted 1 | . . . . . . 1 Combat Hostiles . | . . . . . . . Parts Fried 1 | . . . . . . 1 Impact Corruptions . | . . . . . . . Robots Melted . | . . . . . . . Combat Hostiles . | . . . . . . . Parts Melted . | . . . . . . . Heat Transferred 100 | . . . . . . 100 Parts Sabotaged . | . . . . . . . Parts Stolen . | . . . . . . . Parts Stripped . | . . . . . . . Power Chain Reactions 3 | . . . . . . 3 Alert | -11 -10 -10 -10 -9 -8 -7 ------- Run | Yrd Mat Min Exi Min Mat Fac Peak Influence 517 | . 145 181 . . 338 517 Initial 144 | . . 36 . . . 144 Average 123 | . 57 44 . . 157 140 Maximum Alert Level 2 | . . . . . 1 2 Low Security (%) 78 | 100 100 100 . 100 64 77 Level 1 20 | . . . . . 35 16 Level 2 1 | . . . . . . 5 Level 3 . | . . . . . . . Level 4 . | . . . . . . . Level 5 . | . . . . . . . High Security . | . . . . . . . Max Security . | . . . . . . . Squads Dispatched 26 | . 2 . . . 9 15 Investigation 3 | . 1 . . . 1 1 Extermination 6 | . . . . . . 6 Reinforcement 14 | . 1 . . . 5 8 Assault . | . . . . . . . Garrison 3 | . . . . . 3 . Intercept . | . . . . . . . Searches Triggered . | . . . . . . . Construction Impeded 1 | . . . . . . 1 Haulers Reinforced . | . . . . . . . Active Scanning Responses . | . . . . . . . Cargo Convoy Interrupts 1 | . . . . . . 1 Stealth | -11 -10 -10 -10 -9 -8 -7 --------- Run | Yrd Mat Min Exi Min Mat Fac Distress Signals 8 | . 1 . . . 6 1 Communications Jammed 1 | . . . . . . 1 Distress Signals 1 | . . . . . . 1 Times Spotted 165 | . 19 8 . . 78 60 Peak Tracking Total 11 | . 3 3 . . 6 11 Tactical Retreats 3 | . 1 1 . . . 1 Traps | -11 -10 -10 -10 -9 -8 -7 ------- Run | Yrd Mat Min Exi Min Mat Fac Traps Triggered 2 | . 1 . . . 1 . Indirectly . | . . . . . . . Trap Hack Attempts . | . . . . . . . Triggered . | . . . . . . . Disarmed . | . . . . . . . Reprogrammed . | . . . . . . . Reused . | . . . . . . . Traps Extracted . | . . . . . . . Installed . | . . . . . . . Triggered 1 | . . . . . . 1 Machines | -11 -10 -10 -10 -9 -8 -7 ---------- Run | Yrd Mat Min Exi Min Mat Fac Machines Disabled 17 | . . . . . 2 15 Max in Single Turn 4 | . . . . . 1 4 Machines Repaired . | . . . . . . . Machines Dismantled . | . . . . . . . Machines Sabotaged . | . . . . . . . Overloaded Fab Kills . | . . . . . . . Hacking | -11 -10 -10 -10 -9 -8 -7 --------- Run | Yrd Mat Min Exi Min Mat Fac Machines Accessed 14 | . 1 . . . 7 6 Terminals 9 | . . . . . 6 3 Fabricators 1 | . . . . . . 1 Repair Stations 2 | . . . . . . 2 Recycling Units 2 | . 1 . . . 1 . Scanalyzers . | . . . . . . . Garrison Access . | . . . . . . . Total Hacks 43 | . 1 . . . 24 18 Successful 22 | . 1 . . . 12 9 Failed 21 | . . . . . 12 9 Catastrophic 2 | . . . . . 2 . Database Lockouts . | . . . . . . . Manual 2 | . . . 1 . 1 . Terminals 26 | . . . . . 19 7 Fabricators 2 | . . . . . . 2 Repair Stations 9 | . . . . . . 9 Recycling Units 6 | . 1 . . . 5 . Scanalyzers . | . . . . . . . Garrison Access . | . . . . . . . Terminal Hacks 11 | . . . . . 8 3 Record 3 | . . . . . 2 1 Open DSF 1 | . . . . . . 1 Branch Access Points 1 | . . . . . 1 . Unreport Threat 1 | . . . . . 1 . Locate Traps 1 | . . . . . 1 . Patrol Status 1 | . . . . . . 1 Zone Layout 3 | . . . . . 3 . Fabricator Hacks . | . . . . . . . Repair Station Hacks 6 | . . . . . . 6 Scan Component 3 | . . . . . . 3 Repair 3 | . . . . . . 3 Recycling Unit Hacks 5 | . 1 . . . 4 . Process 1 | . . . . . 1 . Report Inventory 3 | . 1 . . . 2 . Retrieve Matter 1 | . . . . . 1 . Scanalyzer . | . . . . . . . Garrison Access Hacks . | . . . . . . . Unauthorized Hacks . | . . . . . . . Terminals . | . . . . . . . Fabricators . | . . . . . . . Repair Stations . | . . . . . . . Recycling Units . | . . . . . . . Scanalyzers . | . . . . . . . Garrison Access . | . . . . . . . Data Cores Recovered 1 | . . . . . 1 . Used . | . . . . . . . Hacking Detections 10 | . 1 . . . 6 3 Full Trace Events 3 | . . . . . 2 1 Feedback Events . | . . . . . . . Feedback Blocked . | . . . . . . . Robot Schematics Acquired . | . . . . . . . Robots Built . | . . . . . . . Authchips . | . . . . . . . Time . | . . . . . . . Total Robot Build Rating . | . . . . . . . Part Schematics Acquired . | . . . . . . . Parts Built . | . . . . . . . Authchips . | . . . . . . . Time . | . . . . . . . Total Part Build Rating . | . . . . . . . Parts Repaired 3 | . . . . . . 3 Time 110 | . . . . . . 110 Parts Recycled . | . . . . . . . Recycled Matter 654 | . . . . . 654 . Retrieved Matter 654 | . . . . . 654 . Retrieved Components . | . . . . . . . Parts Scanalyzed . | . . . . . . . Part Schematics Acquired . | . . . . . . . Parts Damaged . | . . . . . . . Bothacking | -11 -10 -10 -10 -9 -8 -7 ------------ Run | Yrd Mat Min Exi Min Mat Fac Used RIF Installer . | . . . . . . . Robots Hacked . | . . . . . . . Non-combat . | . . . . . . . Combat . | . . . . . . . Robot Hacks Applied . | . . . . . . . Relay Couplers Released . | . . . . . . . Fabnet Peak Effective % . | . . . . . . . Robots Rewired . | . . . . . . . Allies Hacked . | . . . . . . . Hacks Repelled . | . . . . . . . Allies | -11 -10 -10 -10 -9 -8 -7 -------- Run | Yrd Mat Min Exi Min Mat Fac Total Allies 3 | . . . . 3 . . Largest Group 3 | . . . . 3 3 . Highest-Rated Group 40 | . . . . 40 40 . Highest-Rated Ally 16 | . . . . 16 16 . Total Orders . | . . . . . . . Ally Attacks 31 | . . . . . 31 . Total Damage 348 | . . . . . 348 . Kills 7 | . . . . . 7 . Allies Corrupted . | . . . . . . . Allies Melted . | . . . . . . . Intel | -11 -10 -10 -10 -9 -8 -7 ------- Run | Yrd Mat Min Exi Min Mat Fac Robot Analysis Total . | . . . . . . . Derelict Logs Recovered 2 | . . 1 . 1 . . Drone Launches . | . . . . . . . Drone Recoveries . | . . . . . . . Exploration | -11 -10 -10 -10 -9 -8 -7 ------------- Run | Yrd Mat Min Exi Min Mat Fac Turns Passed 10894 | 78 1196 1167 387 215 4268 3583 Spaces Moved 4255 | 44 589 662 239 125 1647 949 Core 12 | 6 . . . . . 6 Treads 4144 | 38 589 662 239 125 1647 844 Legs 99 | . . . . . . 99 Wheels . | . . . . . . . Hover . | . . . . . . . Flight . | . . . . . . . Fastest Speed 50 | 50 160 160 160 160 162 162 Average Speed 207 | 145 160 160 160 160 212 282 Slowest Speed 2000 | 160 160 160 160 160 960 2000 Overloaded Moves . | . . . . . . . Propulsion Burnouts . | . . . . . . . Robots Hopped . | . . . . . . . Cave-ins Triggered . | . . . . . . . Exploration Rate (%) 49 | 4 68 94 59 23 74 22 Regions Visited 6 Branch Regions 3 Pre-discovered Areas . | . . . . . . . Known Exits Taken 1 | . . . . . 1 . Unknown Exits Taken 5 | 1 1 1 1 1 . . Scrap Searched 1 | . . . . 1 . . Spaces Dug . | . . . . . . . Terrain Destroyed 134 | . . . . . 80 54 Melee . | . . . . . . . Projectile 10 | . . . . . 3 7 AOE 124 | . . . . . 77 47 Terrain Rammed . | . . . . . . . Walls Destroyed . | . . . . . . . Machines Disabled . | . . . . . . . Actions | -11 -10 -10 -10 -9 -8 -7 --------- Run | Yrd Mat Min Exi Min Mat Fac Total 5659 | 59 731 729 244 140 2146 1610 Wait 682 | . 52 27 . 16 174 413 Move 4249 | 43 588 661 238 124 1646 949 Hop . | . . . . . . . Pick Up 167 | 8 16 2 2 . 89 50 Fast Attach . | . . . . . . . Attach 96 | 7 2 2 1 . 41 43 Detach 3 | 1 . . . . 2 . Swap 39 | . 4 . 1 . 19 15 Drop 27 | . 6 . 2 . 11 8 Fire 376 | . 61 35 . . 152 128 Melee . | . . . . . . . Ram . | . . . . . . . Kick . | . . . . . . . Crush 20 | . 2 2 . . 12 4 Escape Stasis . | . . . . . . . Rewire . | . . . . . . . Trap . | . . . . . . . Miscellaneous . | . . . . . . . Route ------- -11/Scrapyard -10/Materials (discovered 3 exits: [*Mat x2] / [*Min]) -10/Mines (discovered 3 exits: [*Mat x2] / *Exi) -10/Exiles -9/Mines (discovered 2 exits: *Mat x2) -8/Materials -7/Factory (discovered 1 exit: [*Fac]) History --------- Turn | Location | Event 4 | -11/Scrapyard | Discovered new exit (range 16) 79 | -11/Scrapyard | Entered Materials 318 | -10/Materials | Build established: Mutant 639 | -10/Materials | Discovered new exit (range 8) 823 | -10/Materials | Discovered new exit (range 16) 1037 | -10/Materials | Discovered new exit (range 15) 1275 | -10/Materials | Entered Mines 1693 | -10/Mines | Discovered new exit (range 8) 2011 | -10/Mines | YI-UF0 nonchalantly dropped a Grenade Launcher on the ground 2016 | -10/Mines | Core integrity fell below 50% 2199 | -10/Mines | Learned 4 Materials zone layouts 2417 | -10/Mines | Discovered new exit (range 13) 2434 | -10/Mines | Deemed a non-threat by the Exiles lab entrance 2436 | -10/Mines | Discovered new exit (range 5) 2442 | -10/Mines | Entered Exiles 2481 | -10/Exiles | Met 8R-AWN 2510 | -10/Exiles | Met EX-HEX 2558 | -10/Exiles | Met EX-BIN 2577 | -10/Exiles | Aligned with FarCom system 2578 | -10/Exiles | Given EX-Vault access code 2615 | -10/Exiles | Opened EX-Vault 2627 | -10/Exiles | Found Prototype Energy Cannon 2662 | -10/Exiles | Warned to stay clear of 0b10 Research branches 2682 | -10/Exiles | Exiles lab attacked by MAIN.C 2811 | -10/Exiles | Discovered new exit (range 14) 2829 | -10/Exiles | Left Exiles lab with Latent Energy Streamer 2829 | -10/Exiles | Entered Mines 2843 | -9/Mines | Discovered new exit (range 13) 2917 | -9/Mines | Build established: Scavenger-Mutant 2946 | -9/Mines | Assisted by bots powering up and referring to "LRC-V3" 2949 | -9/Mines | Learned Materials emergency access door positions 2973 | -9/Mines | Discovered new exit (range 3) 3044 | -9/Mines | Entered Materials 3044 | -8/Materials | Accompanied by 3 allies 3044 | -8/Materials | Evolved 4 slots: Propulsion x2, Utility x2 3045 | -8/Materials | Identified exit to Factory 3332 | -8/Materials | Build established: Hauler-Mutant 3356 | -8/Materials | Lost 4 parts (2n1u1w) 3794 | -8/Materials | Build established: Hauler-Skirmisher 3831 | -8/Materials | Garrison activated, responded to threat 4154 | -8/Materials | Build established: Hauler-Mutant 4197 | -8/Materials | Identified Latent Energy Streamer 5051 | -8/Materials | Lost 4 parts (1p2n1u) 5084 | -8/Materials | Lost 7 parts (1p4u2w) 5328 | -8/Materials | Build established: Scavenger-Mutant 6015 | -8/Materials | Build established: Mutant 6367 | -8/Materials | Core integrity fell below 50% 6437 | -8/Materials | Destroyed 7 combat bots 6447 | -8/Materials | Core integrity fell below 20% 6488 | -8/Materials | Lost 14 parts (2p4n3u5w) 6663 | -8/Materials | Build established: Scavenger-Mutant 7312 | -8/Materials | Entered Factory 7312 | -7/Factory | Evolved 2 slots: Utility x1, Weapon x1 7418 | -7/Factory | Repaired Nuclear Core 7456 | -7/Factory | Repaired Broken Lgt. Treads 7493 | -7/Factory | Repaired Broken Lgt. Treads 7631 | -7/Factory | Build established: Scavenger-Tank 8080 | -7/Factory | Build established: Tank 8285 | -7/Factory | Cargo convoy interrupted 8385 | -7/Factory | Lost 17 parts (1p6n5u5w) 8410 | -7/Factory | Found Prototype Launcher 8649 | -7/Factory | Build established: Scavenger-Tank 9365 | -7/Factory | Core integrity fell below 50% 9416 | -7/Factory | Lost 3 parts (2n1w) 9679 | -7/Factory | Lost 3 parts (2n1u) 9943 | -7/Factory | Build established: Scavenger-Skirmisher 10260 | -7/Factory | Identified Tesla Bomb Launcher 10364 | -7/Factory | Lost 7 parts (1p3n3w) 10370 | -7/Factory | Destroyed 8 combat bots 10509 | -7/Factory | Core integrity fell below 20% 10536 | -7/Factory | Lost 5 parts (1p1u3w) 10618 | -7/Factory | System corruption reached 10% 10859 | -7/Factory | Discovered new exit (range 12) 10895 | -7/Factory | Destroyed by X-57 Shotgunner with Shotgun Last Messages --------------- 10780_ System corrupted: Matter fused (-7). 10783_ K-01 Serf cleans the Power Conduit. 10798_ System corrupted: Matter fused (-8). 10835_ System corrupted: Matter fused (-9). 10851_ System corrupted: Component data lost. 10858_ ALERT: Suspicious intruders detected, dispatching Specialist reinforcements to area. 10859_ EXIT=FOUND 10861_ VSS Leg destroyed. 10861_ Knocked back. 10871_ VSS Leg destroyed. 10871_ Critical hit (Blast). 10871_ Flexi-carbon Leg destroyed. 10875_ Slug penetrates Wall. 10875_ Knocked back. 10876_ System corrupted: Autogun rejected. 10876_ Flak Gun destroyed. 10892_ Hrd. Medium Armor Plating destroyed. 10894_ System corrupted: Matter fused (-10). 10894_ Knocked back. Map ----- +----------------------------------------------------+ | ???????????????????????????????????? | | ???????????????????????????????????? | | ???????????????????????????????????? | | ???????????????????????????????????? | | ???????????????????????????????????? | | ???????????????????????????????????? | | ???????????????????????????????????? | | ???????????????????????????????????? | | ???????????????????????????????????? | | ???????????????????????????????????? | | ???????????????????????????????????? | | ???????????????????????????????????? | | ???????????????????????????????????? | | ???????????????????????????????????? | | ???????#???????????????????????????? | | ???????# ??????????????????????????? | | ???????# ??????????????????????????? | | ???????# ########+################## | | ???????# w | | ???????# | | ???????+ % % | | ???????# [ % | | ???????# xx H | | ???????####/#;; % ################ | | ????????# # #?????????????# | | ????????# @ # #?????????????# | | ????????# # #?????????????# | | ????????#! + #?????????????# | | ????????# # #?????????????# | | ????????# # #?????????????# | | ????????# # #?????????????# | | ????????# # #?????????????# | | ????????# # ?????????????# | | ????????; # ??????####### | | ????????# # < ??????# + | | ????????# # ??????# ##### | | ????????####### ^ #######+#####+ | | ??????????????######### " # | | ??????????????????????# "" # | | ??????????????????????# "" # | | ??????????????????????# "" # | | ??????????????????????# * #% | | ??????????????????????# " ! " | | ??????????????????????# " ! " | | ??????????????????????# "" # | | ??????????????????????# * # | | ??????????????????????# +! | | ??????????????????????# " ## | | ??????????????????????# "" # | | ??????????????????????# # | +----------------------------------------------------+ Best States ------------- Heat Dissipation 34 Energy Generation 16 Energy Capacity 290 Matter Stores 500 Matter Capacity 500 Sight Range 16 Terrain Scan Range 14 Terrain Scan Density 85 Jamming Range 12 Armor Coverage 825 Resistance: KI 20 Utility Shielding 66 Weapon Shielding 33 Evasion (%) 40 Core Analysis 6 Recoil Reduction 8 Item Schematics ----------------- None Robot Schematics ------------------ None Fabricated ------------ Nothing Alien Tech Used ----------------- None Achievements -------------- Packrat Challenges ------------ None Game ------ Seed AntimissileImprovedScanner Manual? 0 Play Time 01:37:47 Cumulative 11.0 hours Start 2024.04.07 @ 13:29:20 End 2024.04.07 @ 15:37:58 Sessions 1 Manual Loads 0 Difficulty Rogue Special Mode None Game No. 20 Rogue 20 Adventurer 0 Explorer 0 Win Type - Total 0 Types 0/0/0/0/0/0/0/0/0 Lore% 15 Gallery% 13 Achievement% 14 Wizard Run 0 Options --------- Layout 1 ASCII 0 Keyboard 0 Movement Numpad Keybinds 0 Fullscreen 1 Font 24/Smallcaps Map View 50x35 Zoom Use 0% Tactical HUD 1 Map Filters NONE Filters NONE Steam 1 RUN: c612153b-a56c-4bc9-9a9f-7f734bee8577